Workbook

Sheet Sheet1
A2: Temperature(¡C) | B2: 1 | C2: 2 | E2: 3
A3: 50 | B3: 34161141.5 | C3: 8822108.5 | D3: 50 | E3: 1674987.15
A4: 25 | B4: 13033244.5 | C4: 10507155.5 | D4: 25 | E4: 824966.65
A5: =A4/2 -> 12.5 | B5: 6415610.5 | C5: 5390983.5 | D5: 20 | E5: 692485.25
A6: =A5/2 -> 6.25 | B6: 2794147.5 | C6: 2537256.5 | D6: 10 | E6: 322863.65
A7: =A6/2 -> 3.125 | B7: 1380689.5 | C7: 1241793.5 | D7: 1 | E7: 27653.55
A8: =A7/2 -> 1.5625 | B8: 827333.5 | C8: 672207.5 | D8: 0 | E8: -3085.85
A9: =A8/2 -> 0.78125 | B9: 375688.5 | C9: 379844.5 | E9: -29859.5
A10: 0 | B10: 26728.5 | C10: -26728.5 | E10: -27561.5

Sheet Emily Libraries from Sciclone_0
A1: ##BLOCKS= 3
A2: Plate: | B2: Plate01 | C2: 1.3 | D2: PlateFormat | E2: Endpoint | F2: Fluorescence | G2: FALSE | H2: Reduced | I2: FALSE | J2: 1 | P2: 1 | Q2: 535 | R2: 1 | S2: 12 | T2: 96 | U2: 485 | V2: Manual | Z2: 0 | AD2: 1 | AE2: 8
C3: 1 | D3: 2 | E3: 3 | F3: 4 | G3: 5 | H3: 6 | I3: 7 | J3: 8 | K3: 9 | L3: 10 | M3: 11 | N3: 12
C4: 33362217.5 | D4: 8900892.5 | E4: 16846873.5 | F4: 10092169.5 | G4: 9632134.5 | H4: 8103439.5 | I4: 12840413.5 | J4: 8951953.5 | K4: 10460156.5 | L4: 1638917.5 | M4: 945404.5 | N4: 2023060.5
C5: 12858194.5 | D5: 10542924.5 | E5: 8393362.5 | F5: 4615258.5 | G5: 8607909.5 | H5: 10432115.5 | I5: 5386786.5 | J5: 10624914.5 | K5: 8111553.5 | L5: 657170.5 | M5: 3703856.5 | N5: 3605074.5
C6: 6330145.5 | D6: 5550796.5 | E6: 7068403.5 | F6: 2530231.5 | G6: 6211171.5 | H6: 9069233.5 | I6: 12401022.5 | J6: 12652330.5 | K6: 10680637.5 | L6: 4726200.5 | M6: 2500971.5 | N6: -59816.5
C7: 2797912.5 | D7: 2637287.5 | E7: 3317225.5 | F7: 8943463.5 | G7: 12895912.5 | H7: 9394990.5 | I7: 11388322.5 | J7: 12396398.5 | K7: 2052893.5 | L7: 2950232.5 | M7: 6031649.5 | N7: -59758.5
C8: 1392438.5 | D8: 1327962.5 | E8: 291564.5 | F8: 9262797.5 | G8: 7476721.5 | H8: 4331638.5 | I8: 10299272.5 | J8: 11262921.5 | K8: 10252964.5 | L8: 2926136.5 | M8: 5960925.5 | N8: -59423.5
C9: 825536.5 | D9: 693253.5 | E9: -32123.5 | F9: 9793921.5 | G9: 8035093.5 | H9: 10302328.5 | I9: 14121781.5 | J9: 11968304.5 | K9: 3484645.5 | L9: 7385882.5 | M9: 3930537.5 | N9: -59778.5
C10: 377175.5 | D10: 385794.5 | E10: -33961.5 | F10: 9716911.5 | G10: 11159783.5 | H10: 11023134.5 | I10: 11862456.5 | J10: 11361834.5 | K10: 5919656.5 | L10: 1220935.5 | M10: 2933554.5 | N10: -59692.5
C11: 33840.5 | D11: -33840.5 | E11: -32289.5 | F11: 10220640.5 | G11: 7312379.5 | H11: 10183739.5 | I11: 12488531.5 | J11: 13769380.5 | K11: 8064858.5 | L11: 1385424.5 | M11: 8495619.5 | N11: -59780.5
B13: Plate 1 | C13: =(C4+3922)/336170 -> 99.25 | D13: =(D4+3922)/336170 -> 26.49 | E13: 50.13 | F13: 30.03 | G13: 28.66 | H13: 24.12 | I13: 38.21 | J13: 26.64 | K13: 31.13 | L13: 4.89 | M13: 2.82 | N13: 6.03
C14: =(C5+3922)/336170 -> 38.26 | D14: 31.37 | E14: 24.98 | F14: 13.74 | G14: 25.62 | H14: 31.04 | I14: 16.04 | J14: 31.62 | K14: 24.14 | L14: 1.97 | M14: 11.03 | N14: 10.74
C15: 18.84 | D15: 16.52 | E15: 21.04 | F15: 7.54 | G15: 18.49 | H15: 26.99 | I15: 36.90 | J15: 37.65 | K15: 31.78 | L15: 14.07 | M15: 7.45
C16: 8.33 | D16: 7.86 | E16: 9.88 | F16: 26.62 | G16: 38.37 | H16: 27.96 | I16: 33.89 | J16: 36.89 | K16: 6.12 | L16: 8.79 | M16: 17.95
C17: 4.15 | D17: 3.96 | E17: 0.88 | F17: 27.57 | G17: 22.25 | H17: 12.90 | I17: 30.65 | J17: 33.52 | K17: 30.51 | L17: 8.72 | M17: 17.74
C18: 2.47 | D18: 2.07 | E18: -0.08 | F18: 29.15 | G18: 23.91 | H18: 30.66 | I18: 42.02 | J18: 35.61 | K18: 10.38 | L18: 21.98 | M18: 11.70
C19: =(C10+3922)/336170 -> 1.13 | D19: =(D10+3922)/336170 -> 1.16 | E19: -0.09 | F19: 28.92 | G19: 33.21 | H19: 32.80 | I19: 35.30 | J19: 33.81 | K19: 17.62 | L19: 3.64 | M19: 8.74
C20: =(C11+3922)/336170 -> 0.11 | D20: =(D11+3922)/336170 -> -0.09 | E20: -0.08 | F20: 30.41 | G20: 21.76 | H20: 30.31 | I20: 37.16 | J20: 40.97 | K20: 24.00 | L20: 4.13 | M20: 25.28
A22: ~End
A23: Plate: | B23: Plate02 | C23: 1.3 | D23: PlateFormat | E23: Endpoint | F23: Fluorescence | G23: FALSE | H23: Reduced | I23: FALSE | J23: 1 | P23: 1 | Q23: 535 | R23: 1 | S23: 12 | T23: 96 | U23: 485 | V23: Manual | Z23: 0 | AD23: 1 | AE23: 8
C24: 1 | D24: 2 | E24: 3 | F24: 4 | G24: 5 | H24: 6 | I24: 7 | J24: 8 | K24: 9 | L24: 10 | M24: 11 | N24: 12
C25: 25197 | D25: 7024293 | E25: 4991946 | F25: 1806989 | G25: 2566847 | H25: 5584670 | I25: 5603949 | J25: 986 | K25: 1019 | L25: 1237 | M25: 1715 | N25: 1065
C26: 18380 | D26: 5609971 | E26: 3890570 | F26: 1426879 | G26: 3467507 | H26: 3309295 | I26: 120678 | J26: 998 | K26: 970 | L26: 1052 | M26: 1047 | N26: 1003
C27: 18273 | D27: 5115232 | E27: 4072099 | F27: 3183864 | G27: 3027214 | H27: 2313675 | I27: 12568226 | J27: 1157 | K27: 1014 | L27: 1014 | M27: 5486 | N27: 1004
C28: 31227 | D28: 2619498 | E28: 3130875 | F28: 4236156 | G28: 4426288 | H28: 6146084 | I28: 1534685 | J28: 980 | K28: 1052 | L28: 1019 | M28: 5928 | N28: 2852
C29: 24052 | D29: 4661086 | E29: 4720038 | F29: 6454248 | G29: 1299711 | H29: 5480373 | I29: 1457 | J29: 1668 | K29: 6439 | L29: 1288 | M29: 982 | N29: 1138
C30: 28865 | D30: 5102425 | E30: 3244680 | F30: 6963909 | G30: 4882212 | H30: 6063769 | I30: 1060 | J30: 1127 | K30: 1257 | L30: 2419 | M30: 9964 | N30: 1384
C31: 29062 | D31: 4801252 | E31: 2297440 | F31: 3106328 | G31: 4856520 | H31: 4682368 | I31: 1021 | J31: 1011 | K31: 16762 | L31: 1310 | M31: 1165 | N31: 1719
C32: 25835 | D32: 5320763 | E32: 6112678 | F32: 4492452 | G32: 6099891 | H32: 920522 | I32: 1030 | J32: 3963 | K32: 853 | L32: 1101 | M32: 1162 | N32: 1030
B35: Plate 2 | D35: =(D25+3922)/336170 -> 20.91 | E35: 14.86 | F35: 5.39 | G35: 7.65 | H35: 16.62 | I35: 16.68
D36: =(D26+3922)/336170 -> 16.70 | E36: 11.58 | F36: 4.26 | G36: 10.33 | H36: 9.86 | I36: 0.37
D37: 15.23 | E37: 12.12 | F37: 9.48 | G37: 9.02 | H37: 6.89 | I37: 37.40
D38: 7.80 | E38: 9.33 | F38: 12.61 | G38: 13.18 | H38: 18.29 | I38: 4.58
D39: 13.88 | E39: 14.05 | F39: 19.21 | G39: 3.88 | H39: 16.31
D40: 15.19 | E40: 9.66 | F40: 20.73 | G40: 14.53 | H40: 18.05
D41: 14.29 | E41: 6.85 | F41: 9.25 | G41: 14.46 | H41: 13.94
A42: ~End | D42: 15.84 | E42: 18.19 | F42: 13.38 | G42: 18.16 | H42: 2.75
A44: Group: Unknowns_NoDiln | D44: y = 336170x - 3922
A45: Sample | B45: Wells | C45: RFU_Values | D45: Concentration | E45: MeanConc | F45: SD | G45: CV
A46: 1 | B46: A3 | C46: 16846873.5 | D46: =(C46+3922)/336170 -> 50.13
A47: 2 | B47: A4 | C47: 10092169.5 | D47: =(C47+3922)/336170 -> 30.03
A48: 3 | B48: A5 | C48: 9632134.5 | D48: 28.66
A49: 4 | B49: A6 | C49: 8103439.5 | D49: 24.12
A50: 5 | B50: A7 | C50: 12840413.5 | D50: 38.21
A51: 6 | B51: A8 | C51: 8951953.5 | D51: 26.64
A52: 7 | B52: A9 | C52: 10460156.5 | D52: 31.13
A53: 8 | B53: A10 | C53: 1638917.5 | D53: 4.89
A54: 81 | B54: A2 | C54: 7024293 | D54: 20.91
A55: 82 | B55: B2 | C55: 5609971 | D55: 16.70
A56: 83 | B56: C2 | C56: 5115232 | D56: 15.23
A57: 84 | B57: D2 | C57: 2619498 | D57: 7.80
A58: 85 | B58: E2 | C58: 4661086 | D58: 13.88
A59: 86 | B59: F2 | C59: 5102425 | D59: 15.19
A60: 87 | B60: G2 | C60: 4801252 | D60: 14.29
A61: 88 | B61: H2 | C61: 5320763 | D61: 15.84
A62: 89 | B62: A3 | C62: 4991946 | D62: 14.86
A63: 9 | B63: A11 | C63: 945404.5 | D63: 2.82
A64: 90 | B64: B3 | C64: 3890570 | D64: 11.58
A65: 91 | B65: C3 | C65: 4072099 | D65: 12.12
A66: 92 | B66: D3 | C66: 3130875 | D66: 9.33
A67: 93 | B67: E3 | C67: 4720038 | D67: 14.05
A68: 94 | B68: F3 | C68: 3244680 | D68: 9.66
A69: 95 | B69: G3 | C69: 2297440 | D69: 6.85
A70: 96 | B70: H3 | C70: 6112678 | D70: 18.19
A71: 97 | B71: A4 | C71: 1806989 | D71: 5.39
A72: 98 | B72: B4 | C72: 1426879 | D72: 4.26
A73: 99 | B73: C4 | C73: 3183864 | D73: 9.48
A74: 10 | B74: A12 | C74: 2023060.5 | D74: 6.03
A75: 100 | B75: D4 | C75: 4236156 | D75: 12.61
A76: 101 | B76: E4 | C76: 6454248 | D76: 19.21
A77: 102 | B77: F4 | C77: 6963909 | D77: 20.73
A78: 103 | B78: G4 | C78: 3106328 | D78: 9.25
A79: 104 | B79: H4 | C79: 4492452 | D79: 13.38
A80: 105 | B80: A5 | C80: 2566847 | D80: 7.65
A81: 106 | B81: B5 | C81: 3467507 | D81: 10.33
A82: 107 | B82: C5 | C82: 3027214 | D82: 9.02
A83: 108 | B83: D5 | C83: 4426288 | D83: 13.18
A84: 109 | B84: E5 | C84: 1299711 | D84: 3.88
A85: 11 | B85: B3 | C85: 8393362.5 | D85: 24.98
A86: 110 | B86: F5 | C86: 4882212 | D86: 14.53
A87: 111 | B87: G5 | C87: 4856520 | D87: 14.46
A88: 112 | B88: H5 | C88: 6099891 | D88: 18.16
A89: 113 | B89: A6 | C89: 5584670 | D89: 16.62
A90: 114 | B90: B6 | C90: 3309295 | D90: 9.86
A91: 115 | B91: C6 | C91: 2313675 | D91: 6.89
A92: 116 | B92: D6 | C92: 6146084 | D92: 18.29
A93: 117 | B93: E6 | C93: 5480373 | D93: 16.31
A94: 118 | B94: F6 | C94: 6063769 | D94: 18.05
A95: 119 | B95: G6 | C95: 4682368 | D95: 13.94
A96: 12 | B96: B4 | C96: 4615258.5 | D96: 13.74
A97: 120 | B97: H6 | C97: 920522 | D97: 2.75
A98: 121 | B98: A7 | C98: 5603949 | D98: 16.68
A99: 122 | B99: B7 | C99: 120678 | D99: 0.37
A100: 123 | B100: C7 | C100: 12568226 | D100: 37.40
A101: 124 | B101: D7 | C101: 1534685 | D101: 4.58
A102: 125 | B102: E7 | C102: 1457 | D102: 0.02
A103: 126 | B103: F7 | C103: 1060 | D103: 0.01
A104: 127 | B104: G7 | C104: 1021 | D104: 0.01
A105: 128 | B105: H7 | C105: 1030 | D105: 0.01
A106: 13 | B106: B5 | C106: 8607909.5 | D106: 25.62
A107: 14 | B107: B6 | C107: 10432115.5 | D107: 31.04
A108: 15 | B108: B7 | C108: 5386786.5 | D108: 16.04
A109: 16 | B109: B8 | C109: 10624914.5 | D109: 31.62
A110: 17 | B110: B9 | C110: 8111553.5 | D110: 24.14
A111: 18 | B111: B10 | C111: 657170.5 | D111: =(C111+3922)/336170 -> 1.97
A112: 19 | B112: B11 | C112: 3703856.5 | D112: 11.03
A113: 20 | B113: B12 | C113: 3605074.5 | D113: 10.74
A114: 21 | B114: C3 | C114: 7068403.5 | D114: 21.04
A115: 22 | B115: C4 | C115: 2530231.5 | D115: 7.54
A116: 23 | B116: C5 | C116: 6211171.5 | D116: 18.49
A117: 24 | B117: C6 | C117: 9069233.5 | D117: 26.99
A118: 25 | B118: C7 | C118: 12401022.5 | D118: 36.90
A119: 26 | B119: C8 | C119: 12652330.5 | D119: 37.65
A120: 27 | B120: C9 | C120: 10680637.5 | D120: 31.78
A121: 28 | B121: C10 | C121: 4726200.5 | D121: 14.07
A122: 29 | B122: C11 | C122: 2500971.5 | D122: 7.45
A123: 30 | B123: C12 | C123: -59816.5 | D123: -0.17
A124: 31 | B124: D3 | C124: 3317225.5 | D124: 9.88
A125: 32 | B125: D4 | C125: 8943463.5 | D125: 26.62
A126: 33 | B126: D5 | C126: 12895912.5 | D126: 38.37
A127: 34 | B127: D6 | C127: 9394990.5 | D127: 27.96
A128: 35 | B128: D7 | C128: 11388322.5 | D128: 33.89
A129: 36 | B129: D8 | C129: 12396398.5 | D129: 36.89
A130: 37 | B130: D9 | C130: 2052893.5 | D130: 6.12
A131: 38 | B131: D10 | C131: 2950232.5 | D131: 8.79
A132: 39 | B132: D11 | C132: 6031649.5 | D132: 17.95
A133: 40 | B133: D12 | C133: -59758.5 | D133: -0.17
A134: 41 | B134: E3 | C134: 291564.5 | D134: 0.88
A135: 42 | B135: E4 | C135: 9262797.5 | D135: 27.57
A136: 43 | B136: E5 | C136: 7476721.5 | D136: 22.25
A137: 44 | B137: E6 | C137: 4331638.5 | D137: 12.90
A138: 45 | B138: E7 | C138: 10299272.5 | D138: 30.65
A139: 46 | B139: E8 | C139: 11262921.5 | D139: 33.52
A140: 47 | B140: E9 | C140: 10252964.5 | D140: 30.51
A141: 48 | B141: E10 | C141: 2926136.5 | D141: 8.72
A142: 49 | B142: E11 | C142: 5960925.5 | D142: 17.74
A143: 50 | B143: E12 | C143: -59423.5 | D143: -0.17
A144: 51 | B144: F3 | C144: -32123.5 | D144: -0.08
A145: 52 | B145: F4 | C145: 9793921.5 | D145: 29.15
A146: 53 | B146: F5 | C146: 8035093.5 | D146: 23.91
A147: 54 | B147: F6 | C147: 10302328.5 | D147: 30.66
A148: 55 | B148: F7 | C148: 14121781.5 | D148: 42.02
A149: 56 | B149: F8 | C149: 11968304.5 | D149: 35.61
A150: 57 | B150: F9 | C150: 3484645.5 | D150: 10.38
A151: 58 | B151: F10 | C151: 7385882.5 | D151: 21.98
A152: 59 | B152: F11 | C152: 3930537.5 | D152: 11.70
A153: 60 | B153: F12 | C153: -59778.5 | D153: -0.17
A154: 61 | B154: G3 | C154: -33961.5 | D154: -0.09
A155: 62 | B155: G4 | C155: 9716911.5 | D155: 28.92
A156: 63 | B156: G5 | C156: 11159783.5 | D156: 33.21
A157: 64 | B157: G6 | C157: 11023134.5 | D157: 32.80
A158: 65 | B158: G7 | C158: 11862456.5 | D158: 35.30
A159: 66 | B159: G8 | C159: 11361834.5 | D159: 33.81
A160: 67 | B160: G9 | C160: 5919656.5 | D160: 17.62
A161: 68 | B161: G10 | C161: 1220935.5 | D161: 3.64
A162: 69 | B162: G11 | C162: 2933554.5 | D162: 8.74
A163: 70 | B163: G12 | C163: -59692.5 | D163: -0.17
A164: 71 | B164: H3 | C164: -32289.5 | D164: -0.08
A165: 72 | B165: H4 | C165: 10220640.5 | D165: 30.41
A166: 73 | B166: H5 | C166: 7312379.5 | D166: 21.76
A167: 74 | B167: H6 | C167: 10183739.5 | D167: 30.31
A168: 75 | B168: H7 | C168: 12488531.5 | D168: 37.16
A169: 76 | B169: H8 | C169: 13769380.5 | D169: 40.97
A170: 77 | B170: H9 | C170: 8064858.5 | D170: 24.00
A171: 78 | B171: H10 | C171: 1385424.5 | D171: 4.13
A172: 79 | B172: H11 | C172: 8495619.5 | D172: 25.28
A173: 80 | B173: H12 | C173: -59780.5 | D173: -0.17
A174: Group Summaries
A175: ~End
A176: Original Filename: Emily Libraries from Sciclone_07-14-2015; Date Last Saved: 7/14/2015 11:56:25 AM
